[Event "*** SCC Grand Prix: Titled Tuesday Blitz"]
[Site "Chess.com"]
[Date "2020.09.08"]
[Round "3"]
[White "Ermito2020"]
[Black "GM_Levan_Pantsulaia"]
[Result "1/2-1/2"]
[WhiteElo "2634"]
[BlackElo "2859"]
[TimeControl "180+1"]
[EndTime "10:30:39 PDT"]
[Termination "Game drawn by repetition"]

1. e4 {[%clk 0:03:00.9]} 1... c6 {[%clk 0:02:59]} 2. d4 {[%clk 0:03:00.5]} 2...
d5 {[%clk 0:02:59.9]} 3. e5 {[%clk 0:03:01.1]} 3... Bf5 {[%clk 0:02:59.5]} 4.
Nf3 {[%clk 0:03:01.5]} 4... e6 {[%clk 0:03:00]} 5. Be2 {[%clk 0:03:02]} 5... Nd7
{[%clk 0:03:00.2]} 6. O-O {[%clk 0:03:02.2]} 6... Ne7 {[%clk 0:03:00.4]} 7. Nbd2
{[%clk 0:03:02.7]} 7... Ng6 {[%clk 0:03:00.6]} 8. Nb3 {[%clk 0:03:00.3]} 8... f6
{[%clk 0:03:00.9]} 9. Ne1 {[%clk 0:02:42.5]} 9... h5 {[%clk 0:02:59.2]} 10. f4
{[%clk 0:02:36.2]} 10... h4 {[%clk 0:02:58.7]} 11. Bd3 {[%clk 0:02:31.5]} 11...
Ne7 {[%clk 0:02:56.4]} 12. Qe2 {[%clk 0:02:18.5]} 12... Kf7 {[%clk 0:02:53.6]}
13. Bd2 {[%clk 0:02:07.6]} 13... Rc8 {[%clk 0:02:50.8]} 14. Bb4 {[%clk
0:02:06.3]} 14... Bxd3 {[%clk 0:02:27.3]} 15. Nxd3 {[%clk 0:02:07.2]} 15... Nf5
{[%clk 0:02:27.3]} 16. Bxf8 {[%clk 0:02:04.7]} 16... Nxf8 {[%clk 0:02:27.8]} 17.
Rae1 {[%clk 0:01:57.9]} 17... b6 {[%clk 0:02:27.6]} 18. c3 {[%clk 0:01:49.3]}
18... Qe7 {[%clk 0:02:19.4]} 19. Nd2 {[%clk 0:01:45.7]} 19... c5 {[%clk
0:02:16.4]} 20. Nf3 {[%clk 0:01:44.4]} 20... c4 {[%clk 0:02:04.1]} 21. Nf2
{[%clk 0:01:42.6]} 21... b5 {[%clk 0:01:49.6]} 22. Ng4 {[%clk 0:01:42.4]} 22...
a5 {[%clk 0:01:33.5]} 23. exf6 {[%clk 0:01:42]} 23... gxf6 {[%clk 0:01:33.2]}
24. Ne3 {[%clk 0:01:42.7]} 24... Ng6 {[%clk 0:00:57.3]} 25. Ne5+ {[%clk
0:00:41]} 25... fxe5 {[%clk 0:00:54.4]} 26. Nxf5 {[%clk 0:00:40.7]} 26... exf5
{[%clk 0:00:51.7]} 27. fxe5 {[%clk 0:00:41.2]} 27... Qg5 {[%clk 0:00:45.9]} 28.
Qf3 {[%clk 0:00:38.5]} 28... Ke6 {[%clk 0:00:44.6]} 29. Re2 {[%clk 0:00:37.9]}
29... Rhg8 {[%clk 0:00:39.5]} 30. Ref2 {[%clk 0:00:38]} 30... Ne7 {[%clk
0:00:37.5]} 31. Qe2 {[%clk 0:00:35.6]} 31... Rg7 {[%clk 0:00:34.5]} 32. Kh1
{[%clk 0:00:35.5]} 32... Rcg8 {[%clk 0:00:34.1]} 33. h3 {[%clk 0:00:35.3]} 33...
Qh6 {[%clk 0:00:32.5]} 34. Qc2 {[%clk 0:00:29.2]} 34... Rg5 {[%clk 0:00:29.8]}
35. b3 {[%clk 0:00:27.4]} 35... Qg6 {[%clk 0:00:27.5]} 36. bxc4 {[%clk
0:00:26.8]} 36... bxc4 {[%clk 0:00:23.9]} 37. Rb1 {[%clk 0:00:27.1]} 37... Kf7
{[%clk 0:00:23.8]} 38. Re1 {[%clk 0:00:22.2]} 38... Qe6 {[%clk 0:00:22.6]} 39.
Qa4 {[%clk 0:00:19.5]} 39... Rg3 {[%clk 0:00:21.4]} 40. Qc2 {[%clk 0:00:15.7]}
40... R8g5 {[%clk 0:00:20.2]} 41. Ref1 {[%clk 0:00:15.1]} 41... Kg7 {[%clk
0:00:19.4]} 42. Re2 {[%clk 0:00:14.5]} 42... Ng6 {[%clk 0:00:15.5]} 43. Ref2
{[%clk 0:00:13.8]} 43... f4 {[%clk 0:00:15.8]} 44. Qd2 {[%clk 0:00:11.1]} 44...
f3 {[%clk 0:00:14.9]} 45. Rxf3 {[%clk 0:00:10.4]} 45... Rxg2 {[%clk 0:00:14.7]}
46. Qxg2 {[%clk 0:00:10.2]} 46... Rxg2 {[%clk 0:00:10.6]} 47. Kxg2 {[%clk
0:00:11.1]} 47... Qb6 {[%clk 0:00:06.4]} 48. R1f2 {[%clk 0:00:10.2]} 48... Qb1
{[%clk 0:00:05.8]} 49. Rf6 {[%clk 0:00:09.3]} 49... Qe4+ {[%clk 0:00:05.3]} 50.
Kh2 {[%clk 0:00:08.8]} 50... a4 {[%clk 0:00:05.1]} 51. Rf7+ {[%clk 0:00:08.9]}
51... Kh6 {[%clk 0:00:04.9]} 52. R7f6 {[%clk 0:00:09.4]} 52... Kg5 {[%clk
0:00:03.8]} 53. Rg2+ {[%clk 0:00:09.3]} 53... Kh5 {[%clk 0:00:03.9]} 54. Rfxg6
{[%clk 0:00:08.9]} 54... Qf4+ {[%clk 0:00:03.2]} 55. Kh1 {[%clk 0:00:08.5]}
55... Qf1+ {[%clk 0:00:03.2]} 56. Kh2 {[%clk 0:00:08.7]} 56... Qf4+ {[%clk
0:00:03.8]} 57. Kg1 {[%clk 0:00:08.8]} 57... Qc1+ {[%clk 0:00:03.9]} 58. Kh2
{[%clk 0:00:08.6]} 58... Qf4+ {[%clk 0:00:03.8]} 1/2-1/2

[Event "*** SCC Grand Prix: Titled Tuesday Blitz"]
[Site "Chess.com"]
[Date "2020.09.08"]
[Round "3"]
[White "MarceloPlaya"]
[Black "Beltraxtor"]
[Result "0-1"]
[WhiteElo "2367"]
[BlackElo "2569"]
[TimeControl "180+1"]
[EndTime "10:30:41 PDT"]
[Termination "Beltraxtor won on time"]

1. e4 {[%clk 0:03:00.9]} 1... c5 {[%clk 0:02:59]} 2. Nf3 {[%clk 0:03:00.1]} 2...
e6 {[%clk 0:02:58.7]} 3. d4 {[%clk 0:02:59.9]} 3... cxd4 {[%clk 0:02:59.6]} 4.
Nxd4 {[%clk 0:03:00]} 4... Nc6 {[%clk 0:03:00.5]} 5. Nc3 {[%clk 0:03:00]} 5...
Qc7 {[%clk 0:03:00.9]} 6. Be3 {[%clk 0:02:59.7]} 6... a6 {[%clk 0:03:01.1]} 7.
Qd2 {[%clk 0:02:55.3]} 7... Nf6 {[%clk 0:02:59.8]} 8. f3 {[%clk 0:02:49.7]} 8...
b5 {[%clk 0:02:58.6]} 9. O-O-O {[%clk 0:02:48]} 9... Bb7 {[%clk 0:02:58.5]} 10.
Kb1 {[%clk 0:02:46.7]} 10... Be7 {[%clk 0:02:56.6]} 11. g4 {[%clk 0:02:46.1]}
11... O-O {[%clk 0:02:49.3]} 12. h4 {[%clk 0:02:44.3]} 12... b4 {[%clk
0:02:48.9]} 13. Nce2 {[%clk 0:02:43.5]} 13... Nxd4 {[%clk 0:02:40.3]} 14. Nxd4
{[%clk 0:02:35.8]} 14... d5 {[%clk 0:02:39.6]} 15. g5 {[%clk 0:02:34.1]} 15...
Nh5 {[%clk 0:02:38.8]} 16. exd5 {[%clk 0:01:58.6]} 16... Bxd5 {[%clk 0:02:39.7]}
17. Bd3 {[%clk 0:01:55.4]} 17... Rfd8 {[%clk 0:02:28.9]} 18. Qf2 {[%clk
0:01:48.5]} 18... Nf4 {[%clk 0:02:10.5]} 19. Ne2 {[%clk 0:01:23.4]} 19... Nxd3
{[%clk 0:01:52.6]} 20. Rxd3 {[%clk 0:01:22.3]} 20... Bxa2+ {[%clk 0:01:40.6]}
21. Kxa2 {[%clk 0:01:19.4]} 21... Qxc2 {[%clk 0:00:43.2]} 22. Rb3 {[%clk
0:01:09.2]} 22... Rd3 {[%clk 0:00:40]} 23. Nd4 {[%clk 0:01:02.2]} 23... Qxf2
{[%clk 0:00:34.1]} 24. Bxf2 {[%clk 0:01:01.3]} 24... Rd2 {[%clk 0:00:31.1]} 25.
Be3 {[%clk 0:00:58.6]} 25... Rg2 {[%clk 0:00:30.8]} 26. Nc6 {[%clk 0:00:56.1]}
26... Bd6 {[%clk 0:00:27]} 27. Nxb4 {[%clk 0:00:55.5]} 27... a5 {[%clk
0:00:26.2]} 28. Nd3 {[%clk 0:00:53.2]} 28... a4 {[%clk 0:00:26.5]} 29. Rb6
{[%clk 0:00:51.8]} 29... Bf8 {[%clk 0:00:23.1]} 30. Bc5 {[%clk 0:00:38.9]} 30...
a3 {[%clk 0:00:23]} 31. Kb1 {[%clk 0:00:33]} 31... axb2 {[%clk 0:00:16]} 32.
Rxb2 {[%clk 0:00:31.9]} 32... Rxb2+ {[%clk 0:00:14.4]} 33. Kxb2 {[%clk 0:00:31]}
33... Rd8 {[%clk 0:00:13.1]} 34. Kc3 {[%clk 0:00:26]} 34... Rxd3+ {[%clk
0:00:12.8]} 35. Kxd3 {[%clk 0:00:25]} 35... Bxc5 {[%clk 0:00:13.7]} 36. Rc1
{[%clk 0:00:23.7]} 36... Bf8 {[%clk 0:00:13.4]} 37. Rc8 {[%clk 0:00:23.3]} 37...
g6 {[%clk 0:00:12.1]} 38. Ke4 {[%clk 0:00:22]} 38... Kg7 {[%clk 0:00:11.3]} 39.
Rc1 {[%clk 0:00:20.1]} 39... Bd6 {[%clk 0:00:10]} 40. Rh1 {[%clk 0:00:18.1]}
40... h6 {[%clk 0:00:09.1]} 41. gxh6+ {[%clk 0:00:16.9]} 41... Kxh6 {[%clk
0:00:10]} 42. Rd1 {[%clk 0:00:15.1]} 42... Bg3 {[%clk 0:00:08.8]} 43. Rd7 {[%clk
0:00:14.3]} 43... f5+ {[%clk 0:00:07.4]} 44. Ke3 {[%clk 0:00:12.2]} 44... Bxh4
{[%clk 0:00:08]} 45. Rd6 {[%clk 0:00:12]} 45... e5 {[%clk 0:00:07.6]} 46. Re6
{[%clk 0:00:11.8]} 46... Bg3 {[%clk 0:00:06.9]} 47. Ke2 {[%clk 0:00:11.3]} 47...
Kg5 {[%clk 0:00:06.2]} 48. Kf1 {[%clk 0:00:11.1]} 48... Bf4 {[%clk 0:00:07.1]}
49. Kg2 {[%clk 0:00:10.7]} 49... Kh5 {[%clk 0:00:07.5]} 50. Re8 {[%clk
0:00:10.5]} 50... Kh6 {[%clk 0:00:07.5]} 51. Re7 {[%clk 0:00:10.1]} 51... g5
{[%clk 0:00:06.4]} 52. Re6+ {[%clk 0:00:09.3]} 52... Kg7 {[%clk 0:00:06.6]} 53.
Ra6 {[%clk 0:00:08.3]} 53... Kf7 {[%clk 0:00:07]} 54. Rc6 {[%clk 0:00:08.2]}
54... Ke7 {[%clk 0:00:06.7]} 55. Ra6 {[%clk 0:00:05.3]} 55... Be3 {[%clk
0:00:06.7]} 56. Rc6 {[%clk 0:00:05.1]} 56... Kf7 {[%clk 0:00:06.6]} 57. Ra6
{[%clk 0:00:04.9]} 57... Bc5 {[%clk 0:00:06.9]} 58. Rc6 {[%clk 0:00:05]} 58...
Bd4 {[%clk 0:00:06.4]} 59. Ra6 {[%clk 0:00:01.2]} 59... Ke7 {[%clk 0:00:06.8]}
0-1

[Event "*** SCC Grand Prix: Titled Tuesday Blitz"]
[Site "Chess.com"]
[Date "2020.09.08"]
[Round "3"]
[White "latixxa"]
[Black "dopolian"]
[Result "0-1"]
[WhiteElo "2127"]
[BlackElo "2474"]
[TimeControl "180+1"]
[EndTime "10:30:41 PDT"]
[Termination "dopolian won by resignation"]

1. c4 {[%clk 0:03:00.9]} 1... Nf6 {[%clk 0:02:59.2]} 2. Nc3 {[%clk 0:03:01.2]}
2... e6 {[%clk 0:02:58.9]} 3. d4 {[%clk 0:02:58.8]} 3... d5 {[%clk 0:02:58.8]}
4. cxd5 {[%clk 0:02:57.9]} 4... exd5 {[%clk 0:02:59.7]} 5. Bg5 {[%clk
0:02:57.6]} 5... Be7 {[%clk 0:02:59.9]} 6. e3 {[%clk 0:02:57.6]} 6... O-O {[%clk
0:03:00.3]} 7. Bd3 {[%clk 0:02:57.9]} 7... Nbd7 {[%clk 0:03:00.6]} 8. Nge2
{[%clk 0:02:58.1]} 8... c6 {[%clk 0:03:01.2]} 9. Ng3 {[%clk 0:02:58.4]} 9... Re8
{[%clk 0:02:59.7]} 10. Nf5 {[%clk 0:02:58.8]} 10... Bf8 {[%clk 0:02:59.9]} 11.
Qf3 {[%clk 0:02:58.9]} 11... h6 {[%clk 0:02:44.6]} 12. h4 {[%clk 0:02:56.6]}
12... Qb6 {[%clk 0:02:34.6]} 13. O-O-O {[%clk 0:02:53.7]} 13... Re6 {[%clk
0:02:25.9]} 14. g4 {[%clk 0:02:50.6]} 14... Bb4 {[%clk 0:02:08.4]} 15. Bxf6
{[%clk 0:02:25.6]} 15... Bxc3 {[%clk 0:02:02]} 16. bxc3 {[%clk 0:02:25.1]} 16...
Nxf6 {[%clk 0:01:50.9]} 17. g5 {[%clk 0:02:24.5]} 17... Ne4 {[%clk 0:01:48.7]}
18. Bxe4 {[%clk 0:01:07.6]} 18... dxe4 {[%clk 0:01:43.2]} 19. Qg3 {[%clk
0:01:07.2]} 19... h5 {[%clk 0:01:22.6]} 20. g6 {[%clk 0:00:46]} 20... fxg6
{[%clk 0:01:08.4]} 21. Rhg1 {[%clk 0:00:45.6]} 21... Qa5 {[%clk 0:01:01.6]} 22.
Kd2 {[%clk 0:00:45.1]} 22... Qxf5 {[%clk 0:01:01.2]} 23. Rdf1 {[%clk 0:00:36.1]}
23... Re8 {[%clk 0:00:47.3]} 24. f3 {[%clk 0:00:29.6]} 24... Be6 {[%clk
0:00:41.6]} 25. fxe4 {[%clk 0:00:23.6]} 25... Qxe4 {[%clk 0:00:42.1]} 26. Rf4
{[%clk 0:00:22.1]} 26... Qd5 {[%clk 0:00:32.9]} 27. Qxg6 {[%clk 0:00:20.4]}
27... Qxa2+ {[%clk 0:00:30.9]} 28. Kc1 {[%clk 0:00:20.4]} 28... Bg4 {[%clk
0:00:25.2]} 29. Rfxg4 {[%clk 0:00:16]} 29... hxg4 {[%clk 0:00:23.6]} 30. Rxg4
{[%clk 0:00:16.9]} 30... Qf7 {[%clk 0:00:23.3]} 31. Qg5 {[%clk 0:00:15.1]} 31...
Re6 {[%clk 0:00:20.8]} 32. h5 {[%clk 0:00:13.9]} 32... Rae8 {[%clk 0:00:18.8]}
33. Rg3 {[%clk 0:00:11.7]} 33... Qf6 {[%clk 0:00:17.2]} 34. Qg4 {[%clk
0:00:10.8]} 34... Qf1+ {[%clk 0:00:16.5]} 35. Kd2 {[%clk 0:00:10.7]} 35... Qf2+
{[%clk 0:00:15.5]} 36. Kd1 {[%clk 0:00:10.3]} 36... Qf6 {[%clk 0:00:14.4]} 37.
Kd2 {[%clk 0:00:09.5]} 37... a5 {[%clk 0:00:11]} 38. h6 {[%clk 0:00:07.6]} 38...
Qxh6 {[%clk 0:00:10.6]} 39. Rh3 {[%clk 0:00:07.4]} 39... Qg6 {[%clk 0:00:10.8]}
40. Qf4 {[%clk 0:00:07.3]} 40... Rf6 {[%clk 0:00:09.6]} 41. Qh4 {[%clk
0:00:07.6]} 41... a4 {[%clk 0:00:07.9]} 42. Qh8+ {[%clk 0:00:06.9]} 42... Kf7
{[%clk 0:00:08.4]} 43. Qh4 {[%clk 0:00:07.8]} 43... a3 {[%clk 0:00:07.2]} 44.
Rh1 {[%clk 0:00:08.3]} 44... a2 {[%clk 0:00:07.1]} 45. Ra1 {[%clk 0:00:04.8]}
45... Qb1 {[%clk 0:00:06.2]} 46. Qh1 {[%clk 0:00:03.1]} 46... Qxh1 {[%clk
0:00:05.5]} 47. Rxh1 {[%clk 0:00:04]} 47... Ra8 {[%clk 0:00:05.8]} 48. Ra1
{[%clk 0:00:04.8]} 48... Rf1 {[%clk 0:00:05]} 49. Rxf1+ {[%clk 0:00:04.7]} 49...
Ke6 {[%clk 0:00:04.7]} 50. Ra1 {[%clk 0:00:05.6]} 50... g5 {[%clk 0:00:04.9]}
51. Kd3 {[%clk 0:00:06.5]} 51... g4 {[%clk 0:00:04.1]} 52. e4 {[%clk 0:00:07.4]}
52... b5 {[%clk 0:00:02.6]} 53. Ke3 {[%clk 0:00:08.3]} 53... c5 {[%clk
0:00:02.5]} 54. dxc5 {[%clk 0:00:07.1]} 54... Ke5 {[%clk 0:00:02.2]} 55. Kf2
{[%clk 0:00:04]} 55... Ra3 {[%clk 0:00:02.7]} 56. Kg3 {[%clk 0:00:04.9]} 56...
Rxc3+ {[%clk 0:00:02.9]} 57. Kxg4 {[%clk 0:00:05.4]} 57... Rc2 {[%clk
0:00:03.7]} 58. Kg3 {[%clk 0:00:04.5]} 58... Kxe4 {[%clk 0:00:03.8]} 59. Kg4
{[%clk 0:00:05.4]} 59... Kd5 {[%clk 0:00:03.9]} 60. c6 {[%clk 0:00:06.2]} 60...
Kxc6 {[%clk 0:00:04.3]} 61. Kf4 {[%clk 0:00:06.4]} 61... b4 {[%clk 0:00:04.8]}
62. Ke3 {[%clk 0:00:07.3]} 62... b3 {[%clk 0:00:05.3]} 63. Kd3 {[%clk
0:00:07.8]} 63... Rc5 {[%clk 0:00:04.1]} 64. Rh1 {[%clk 0:00:05.7]} 64... b2
{[%clk 0:00:04.2]} 65. Rh6+ {[%clk 0:00:06.3]} 65... Kb5 {[%clk 0:00:04.6]} 66.
Rh8 {[%clk 0:00:06]} 66... b1=Q+ {[%clk 0:00:05.5]} 0-1

[Event "*** SCC Grand Prix: Titled Tuesday Blitz"]
[Site "Chess.com"]
[Date "2020.09.08"]
[Round "3"]
[White "GMKrikor"]
[Black "Firouzja2003"]
[Result "1-0"]
[WhiteElo "2707"]
[BlackElo "2979"]
[TimeControl "180+1"]
[EndTime "10:30:44 PDT"]
[Termination "GMKrikor won by resignation"]

1. e4 {[%clk 0:03:00.9]} 1... c5 {[%clk 0:03:00.3]} 2. Nf3 {[%clk 0:03:00]} 2...
e6 {[%clk 0:03:00.9]} 3. d4 {[%clk 0:03:00]} 3... cxd4 {[%clk 0:03:01.8]} 4.
Nxd4 {[%clk 0:03:00.7]} 4... Nc6 {[%clk 0:03:02.5]} 5. Nc3 {[%clk 0:03:00.4]}
5... Qc7 {[%clk 0:03:03]} 6. Be3 {[%clk 0:02:52.3]} 6... a6 {[%clk 0:03:03]} 7.
Qd2 {[%clk 0:02:51.7]} 7... Nf6 {[%clk 0:03:00.7]} 8. f3 {[%clk 0:02:51.9]} 8...
Be7 {[%clk 0:02:56.5]} 9. O-O-O {[%clk 0:02:46.1]} 9... O-O {[%clk 0:02:54]} 10.
g4 {[%clk 0:02:45.6]} 10... b5 {[%clk 0:02:54.2]} 11. g5 {[%clk 0:02:45.7]}
11... Ne8 {[%clk 0:02:48.6]} 12. h4 {[%clk 0:02:42.7]} 12... b4 {[%clk
0:02:24.2]} 13. Na4 {[%clk 0:02:28.3]} 13... Bb7 {[%clk 0:02:19]} 14. Kb1 {[%clk
0:02:22]} 14... Ne5 {[%clk 0:02:01.2]} 15. Be2 {[%clk 0:02:00.1]} 15... d5
{[%clk 0:01:57.1]} 16. Bf4 {[%clk 0:01:40.2]} 16... dxe4 {[%clk 0:01:41.9]} 17.
Qe3 {[%clk 0:01:28.4]} 17... Qa5 {[%clk 0:01:18.1]} 18. b3 {[%clk 0:01:23.5]}
18... exf3 {[%clk 0:01:08.3]} 19. Nxf3 {[%clk 0:01:21.6]} 19... Nxf3 {[%clk
0:00:58.7]} 20. Bxf3 {[%clk 0:01:20]} 20... Bxf3 {[%clk 0:00:59.2]} 21. Qxf3
{[%clk 0:01:20.9]} 21... Nc7 {[%clk 0:00:57.2]} 22. Rhe1 {[%clk 0:01:04.3]}
22... Nb5 {[%clk 0:00:50.6]} 23. Bc1 {[%clk 0:00:52]} 23... Rac8 {[%clk
0:00:40.2]} 24. Rd7 {[%clk 0:00:44.3]} 24... Nc3+ {[%clk 0:00:30.9]} 25. Nxc3
{[%clk 0:00:41.9]} 25... Rxc3 {[%clk 0:00:31.8]} 26. Qb7 {[%clk 0:00:38.9]}
26... Bd8 {[%clk 0:00:11.1]} 27. Bb2 {[%clk 0:00:33.4]} 27... Rc7 {[%clk
0:00:10.1]} 28. Rxc7 {[%clk 0:00:33.6]} 28... Qxc7 {[%clk 0:00:08.3]} 29. Qxb4
{[%clk 0:00:32.2]} 29... Qg3 {[%clk 0:00:03.9]} 30. Rd1 {[%clk 0:00:29.8]} 30...
f6 {[%clk 0:00:03.7]} 31. Qe4 {[%clk 0:00:28.2]} 31... Qh3 {[%clk 0:00:02.9]}
32. Ba3 {[%clk 0:00:22.2]} 32... Re8 {[%clk 0:00:02.3]} 33. Qc6 {[%clk
0:00:22.3]} 33... Kf7 {[%clk 0:00:03]} 34. Rxd8 {[%clk 0:00:17.9]} 34... Rxd8
{[%clk 0:00:02.2]} 35. Qc7+ {[%clk 0:00:18.2]} 35... Kg6 {[%clk 0:00:03.1]} 36.
Qxd8 {[%clk 0:00:17.7]} 36... Qh1+ {[%clk 0:00:03.6]} 37. Kb2 {[%clk 0:00:17.5]}
37... Qxh4 {[%clk 0:00:04.5]} 38. gxf6 {[%clk 0:00:15.7]} 38... gxf6 {[%clk
0:00:05.4]} 39. Qe8+ {[%clk 0:00:14.8]} 39... Kf5 {[%clk 0:00:05.7]} 40. Bc5
{[%clk 0:00:13.3]} 40... Qh2 {[%clk 0:00:03]} 41. Bb4 {[%clk 0:00:12.1]} 41...
h5 {[%clk 0:00:02.8]} 42. Bc3 {[%clk 0:00:12.2]} 42... e5 {[%clk 0:00:02.3]} 43.
Qd7+ {[%clk 0:00:11.2]} 43... Kg6 {[%clk 0:00:02.7]} 44. Qe8+ {[%clk 0:00:11]}
44... Kf5 {[%clk 0:00:03.2]} 45. Qc8+ {[%clk 0:00:11.7]} 45... Kg6 {[%clk
0:00:03.6]} 46. Qxa6 {[%clk 0:00:12.6]} 46... h4 {[%clk 0:00:03.7]} 47. Qd3+
{[%clk 0:00:12.6]} 47... Kg7 {[%clk 0:00:03.8]} 48. a4 {[%clk 0:00:12.9]} 48...
h3 {[%clk 0:00:04.2]} 49. Qd7+ {[%clk 0:00:12.6]} 49... Kg6 {[%clk 0:00:04.4]}
50. Qe8+ {[%clk 0:00:13]} 50... Kg7 {[%clk 0:00:04.8]} 51. Qe7+ {[%clk
0:00:12.6]} 51... Kg6 {[%clk 0:00:05.1]} 52. a5 {[%clk 0:00:11.4]} 52... Qg2
{[%clk 0:00:04.7]} 53. Qe8+ {[%clk 0:00:11.2]} 53... Kf5 {[%clk 0:00:04.7]} 54.
Qh5+ {[%clk 0:00:10.2]} 54... Ke6 {[%clk 0:00:05.2]} 55. a6 {[%clk 0:00:09.5]}
55... h2 {[%clk 0:00:05.5]} 56. Qe8+ {[%clk 0:00:09.2]} 56... Kf5 {[%clk
0:00:06.1]} 57. Qh5+ {[%clk 0:00:08.8]} 57... Kf4 {[%clk 0:00:06.3]} 58. Bd2+
{[%clk 0:00:07.8]} 58... Qxd2 {[%clk 0:00:05.5]} 59. Qh6+ {[%clk 0:00:08.2]}
59... Kf5 {[%clk 0:00:05.4]} 60. Qxd2 {[%clk 0:00:08.8]} 60... h1=Q {[%clk
0:00:06.3]} 61. Qd3+ {[%clk 0:00:08.9]} 61... Ke6 {[%clk 0:00:06.3]} 62. a7
{[%clk 0:00:08.9]} 62... Qa8 {[%clk 0:00:05.8]} 63. Qa6+ {[%clk 0:00:07.9]}
63... Kd5 {[%clk 0:00:05.9]} 64. Qb6 {[%clk 0:00:08.4]} 64... e4 {[%clk
0:00:01.1]} 65. Qb8 {[%clk 0:00:08.3]} 65... Qc6 {[%clk 0:00:01.5]} 66. a8=Q
{[%clk 0:00:08.7]} 66... e3 {[%clk 0:00:02.4]} 1-0

[Event "*** SCC Grand Prix: Titled Tuesday Blitz"]
[Site "Chess.com"]
[Date "2020.09.08"]
[Round "3"]
[White "chito89"]
[Black "ArjunErigaisi2003"]
[Result "1-0"]
[WhiteElo "2735"]
[BlackElo "3042"]
[TimeControl "180+1"]
[EndTime "10:30:45 PDT"]
[Termination "chito89 won by resignation"]

1. d4 {[%clk 0:02:59.2]} 1... Nf6 {[%clk 0:02:47.7]} 2. c4 {[%clk 0:02:58.9]}
2... e6 {[%clk 0:02:45.1]} 3. Nc3 {[%clk 0:02:57.9]} 3... Bb4 {[%clk 0:02:43.7]}
4. e3 {[%clk 0:02:57.6]} 4... b6 {[%clk 0:02:42.7]} 5. Ne2 {[%clk 0:02:55.8]}
5... c5 {[%clk 0:02:42.3]} 6. a3 {[%clk 0:02:56]} 6... Ba5 {[%clk 0:02:42.6]} 7.
Rb1 {[%clk 0:02:55.6]} 7... Qe7 {[%clk 0:02:41.5]} 8. Bd2 {[%clk 0:02:55.4]}
8... O-O {[%clk 0:02:26.3]} 9. b4 {[%clk 0:02:23.8]} 9... cxb4 {[%clk
0:02:27.2]} 10. axb4 {[%clk 0:02:24.7]} 10... Bxb4 {[%clk 0:02:27.6]} 11. Rxb4
{[%clk 0:02:25]} 11... Qxb4 {[%clk 0:02:28.5]} 12. Nd5 {[%clk 0:02:12.1]} 12...
Nxd5 {[%clk 0:02:22.2]} 13. Bxb4 {[%clk 0:02:11.1]} 13... Nxb4 {[%clk
0:02:23.1]} 14. Nc3 {[%clk 0:02:02.5]} 14... Bb7 {[%clk 0:02:21.1]} 15. Nb5
{[%clk 0:01:51.5]} 15... a5 {[%clk 0:01:38.8]} 16. Bd3 {[%clk 0:01:33]} 16... d5
{[%clk 0:01:18.3]} 17. cxd5 {[%clk 0:01:23.6]} 17... Nxd3+ {[%clk 0:01:09.9]}
18. Qxd3 {[%clk 0:01:23]} 18... exd5 {[%clk 0:01:10.8]} 19. Kd2 {[%clk 0:00:38]}
19... Nc6 {[%clk 0:01:02.6]} 20. Nc7 {[%clk 0:00:38.1]} 20... Rad8 {[%clk
0:00:47.8]} 21. Qb5 {[%clk 0:00:37.4]} 21... Rd7 {[%clk 0:00:33.7]} 22. Qxb6
{[%clk 0:00:37.1]} 22... Rb8 {[%clk 0:00:34.3]} 23. Rb1 {[%clk 0:00:31.8]} 23...
Bc8 {[%clk 0:00:20.5]} 24. Qxc6 {[%clk 0:00:32]} 24... Rxb1 {[%clk 0:00:21]} 25.
Nxd5 {[%clk 0:00:27.5]} 25... Rb2+ {[%clk 0:00:19.4]} 26. Kc1 {[%clk 0:00:17.5]}
26... Rb8 {[%clk 0:00:19.9]} 27. Ne7+ {[%clk 0:00:08.2]} 27... Rxe7 {[%clk
0:00:15.6]} 28. Qd6 {[%clk 0:00:08.8]} 28... g6 {[%clk 0:00:03.1]} 29. Qxb8
{[%clk 0:00:07]} 29... Re8 {[%clk 0:00:03.7]} 30. Qa8 {[%clk 0:00:06]} 30... Bd7
{[%clk 0:00:02.7]} 31. Qxa5 {[%clk 0:00:06]} 31... Rc8+ {[%clk 0:00:03.4]} 32.
Kd2 {[%clk 0:00:06.2]} 32... Bf5 {[%clk 0:00:04]} 33. Qa4 {[%clk 0:00:04.7]}
33... h5 {[%clk 0:00:04.1]} 34. f3 {[%clk 0:00:05]} 34... Be6 {[%clk 0:00:03.8]}
35. e4 {[%clk 0:00:05.3]} 35... Rc4 {[%clk 0:00:04.4]} 36. Qa8+ {[%clk
0:00:05.7]} 36... Kg7 {[%clk 0:00:05]} 37. d5 {[%clk 0:00:05.7]} 37... Bd7
{[%clk 0:00:05]} 38. Qb8 {[%clk 0:00:06]} 38... Kh7 {[%clk 0:00:04.7]} 39. Qd6
{[%clk 0:00:05.4]} 39... Be8 {[%clk 0:00:04.5]} 40. Qe7 {[%clk 0:00:05.9]} 40...
Rc8 {[%clk 0:00:04.9]} 41. d6 {[%clk 0:00:06.4]} 41... Rb8 {[%clk 0:00:04.7]}
42. d7 {[%clk 0:00:06.1]} 42... Bxd7 {[%clk 0:00:05.3]} 43. Qxd7 {[%clk
0:00:07]} 43... Kg7 {[%clk 0:00:05.9]} 44. e5 {[%clk 0:00:07.4]} 44... Rb2+
{[%clk 0:00:05.8]} 45. Kc3 {[%clk 0:00:06.5]} 45... Re2 {[%clk 0:00:06.1]} 46.
f4 {[%clk 0:00:06.3]} 46... h4 {[%clk 0:00:05.9]} 47. Kd3 {[%clk 0:00:05.3]}
47... Re1 {[%clk 0:00:05.4]} 48. Qe7 {[%clk 0:00:04.7]} 48... Kg8 {[%clk
0:00:04]} 49. Qxh4 {[%clk 0:00:04.5]} 49... Rd1+ {[%clk 0:00:04.7]} 50. Ke2
{[%clk 0:00:04.8]} 50... Ra1 {[%clk 0:00:05.6]} 51. Qf6 {[%clk 0:00:05.2]} 51...
Ra2+ {[%clk 0:00:05.6]} 52. Kf3 {[%clk 0:00:05.8]} 52... Ra3+ {[%clk 0:00:06.5]}
53. Kg4 {[%clk 0:00:06.3]} 53... Re3 {[%clk 0:00:06.4]} 54. g3 {[%clk
0:00:06.1]} 54... Re2 {[%clk 0:00:06.5]} 55. h4 {[%clk 0:00:06.5]} 55... Re1
{[%clk 0:00:07.2]} 56. h5 {[%clk 0:00:06.8]} 56... gxh5+ {[%clk 0:00:07.8]} 57.
Kxh5 {[%clk 0:00:07.7]} 57... Rh1+ {[%clk 0:00:08.4]} 58. Kg5 {[%clk 0:00:07.9]}
58... Rh7 {[%clk 0:00:08.4]} 59. Qd8+ {[%clk 0:00:07.7]} 59... Kg7 {[%clk
0:00:08.3]} 60. f5 {[%clk 0:00:08.3]} 60... Rh3 {[%clk 0:00:07.6]} 61. Qf6+
{[%clk 0:00:08.2]} 61... Kg8 {[%clk 0:00:07.6]} 62. g4 {[%clk 0:00:08.3]} 62...
Rh8 {[%clk 0:00:07.1]} 63. Qxh8+ {[%clk 0:00:07.7]} 63... Kxh8 {[%clk 0:00:08]}
64. Kf6 {[%clk 0:00:08.2]} 64... Kg8 {[%clk 0:00:08.5]} 65. g5 {[%clk
0:00:08.8]} 1-0